[Event "Romanian Championship Open 2025"]
[Site "Craiova"]
[Date "2025.02.17"]
[Round "3.18"]
[White "Ulian, Andrei-Octavian"]
[Black "Gales, Randi-Ioan"]
[Result "1/2-1/2"]
[Annotator "ChessBase"]
[ECO "B14"]
[WhiteElo "1996"]
[BlackElo "2247"]
[PlyCount "106"]
[EventDate "2025.02.12"]
[EventType "swiss"]
[EventCountry "ROU"]
[SourceTitle "playchess.com"]
[Source "ChessBase"]
[SourceQuality "1"]
[TimeControl "40/5400+30:900+30"]

1. d4 {[%emt 0:00:05]} Nf6 {[%emt 0:00:09]} 2. Nf3 {[%emt 0:01:37]} e6 {[%emt 0:00:17]} 3. c4 {[%emt 0:01:54]} c5 {[%emt 0:00:18]} 4. e3 {[%emt 0:01:07]} cxd4 {[%emt 0:01:00]} 5. exd4 {[%emt 0:00:33]} d5 {[%emt 0:00:47]} 6. Nc3 {[%emt 0:01:13]} Be7 {[%emt 0:02:03]} 7. Bg5 {[%emt 0:05:52]} O-O {[%emt 0:01:50]} 8. Bd3 {[%emt 0:02:27]} h6 {[%emt 0:00:36]} 9. Bf4 {[%emt 0:01:50]} dxc4 {[%emt 0:03:08]} 10. Bxc4 {[%emt 0:00:15]} Nc6 {[%emt 0:01:06]} 11. O-O {[%emt 0:00:48]} Nd5 {[%emt 0:01:02]} 12. Bxd5 {[%emt 0:02:43]} exd5 {[%emt 0:00:09]} 13. Ne5 {[%emt 0:00:30]} Nxe5 {[%emt 0:01:23]} 14. Bxe5 {[%emt 0:02:22]} Be6 {[%emt 0:01:25]} 15. Nb5 {[%emt 0:05:12]} Bf6 {[%emt 0:25:44]} 16. Bxf6 {[%emt 0:04:06]} Qxf6 {[%emt 0:00:06]} 17. Qd2 {[%emt 0:04:18]} Bf5 {[%emt 0:09:34]} 18. Rfe1 {[%emt 0:07:02]} Qb6 {[%emt 0:04:14]} 19. Nc3 {[%emt 0:03:39]} Rfd8 {[%emt 0:00:31]} 20. Re5 {[%emt 0:01:21]} Be6 {[%emt 0:00:28]} 21. Na4 {[%emt 0:01:23]} Qc6 {[%emt 0:05:24]} 22. Nc5 {[%emt 0:01:01]} Bg4 {[%emt 0:06:05]} 23. Rc1 {[%emt 0:06:14]} Rac8 {[%emt 0:05:34]} 24. Rc3 {[%emt 0:02:20]} Re8 {[%emt 0:12:43]} 25. h3 {[%emt 0:25:59]} Rxe5 {[%emt 0:01:56]} 26. dxe5 {[%emt 0:00:15]} Be6 {[%emt 0:02:39]} 27. Ne4 {[%emt 0:05:47]} Qd7 {[%emt 0:02:01]} 28. Nc5 {[%emt 0:03:48]} Qe7 {[%emt 0:01:17]} 29. Nb3 {[%emt 0:01:45]} Rc4 {[%emt 0:02:33]} 30. Rxc4 {[%emt 0:02:53]} dxc4 {[%emt 0:00:04]} 31. Nd4 {[%emt 0:00:30]} Qd7 {[%emt 0:01:04]} 32. Qe3 {[%emt 0:00:41]} a6 {[%emt 0:01:03]} 33. f4 {[%emt 0:01:04]} g6 {[%emt 0:01:30]} 34. a3 {[%emt 0:01:26]} b5 {[%emt 0:00:28]} 35. Kf2 {[%emt 0:01:13]} h5 {[%emt 0:00:32]} 36. Ne2 {[%emt 0:00:58]} Kh7 {[%emt 0:01:22]} 37. Nc3 {[%emt 0:00:25]} Bf5 {[%emt 0:00:24]} 38. Ne2 {[%emt 0:01:06]} a5 {[%emt 0:00:41]} 39. Qd4 {[%emt 0:01:15]} Qc6 {[%emt 0:03:39]} 40. Nc3 {[%emt 0:00:00]} b4 {[%emt 0:00:00]} 41. axb4 {[%emt 0:03:28]} axb4 {[%emt 0:02:50]} 42. Nd5 {[%emt 0:00:59]} c3 {[%emt 0:09:41]} 43. Nxb4 {[%emt 0:07:25]} cxb2 {[%emt 0:00:28]} 44. Nxc6 {[%emt 0:01:14]} b1=Q {[%emt 0:00:06]} 45. Qd2 {[%emt 0:02:00]} Be4 {[%emt 0:01:27]} 46. Nd4 {[%emt 0:00:14]} Qh1 {[%emt 0:01:04]} 47. Nf3 {[%emt 0:00:29]} Bxf3 {[%emt 0:00:23]} 48. Kxf3 {[%emt 0:00:07]} Qf1+ {[%emt 0:00:26]} 49. Kg3 {[%emt 0:00:51]} Kg7 {[%emt 0:00:46]} 50. Qe3 {[%emt 0:00:24]} Qc4 {[%emt 0:00:46]} 51. Qf3 {[%emt 0:00:42]} Qe6 {[%emt 0:00:12]} 52. Qf2 {[%emt 0:00:47]} Qf5 {[%emt 0:00:46]} 53. h4 {[%emt 0:00:45]} Kh7 {[%emt 0:00:17]} 1/2-1/2

[Event "Romanian Championship Open 2025"]
[Site "Craiova"]
[Date "2025.02.17"]
[Round "3.19"]
[White "Bonte, Andrei-Mihai"]
[Black "Panc, Samuel"]
[Result "1/2-1/2"]
[Annotator "ChessBase"]
[ECO "A90"]
[WhiteElo "2237"]
[BlackElo "2036"]
[PlyCount "59"]
[EventDate "2025.02.12"]
[EventType "swiss"]
[EventCountry "ROU"]
[SourceTitle "playchess.com"]
[Source "ChessBase"]
[SourceQuality "1"]
[TimeControl "40/5400+30:900+30"]

1. d4 {[%emt 0:00:06]} f5 {[%emt 0:00:04]} 2. Nf3 {[%emt 0:00:44]} Nf6 {[%emt 0:00:04]} 3. g3 {[%emt 0:01:42]} e6 {[%emt 0:00:15]} 4. Bg2 {[%emt 0:00:58]} d5 {[%emt 0:00:04]} 5. O-O {[%emt 0:01:44]} Bd6 {[%emt 0:00:02]} 6. b3 {[%emt 0:03:04]} Qe7 {[%emt 0:00:07]} 7. c4 {[%emt 0:01:20]} c6 {[%emt 0:01:29]} 8. Bf4 {[%emt 0:11:56]} Bxf4 {[%emt 0:00:07]} 9. gxf4 {[%emt 0:00:05]} O-O {[%emt 0:00:15]} 10. Ne5 {[%emt 0:00:27]} Bd7 {[%emt 0:01:30]} 11. Qc1 {[%emt 0:12:09]} Be8 {[%emt 0:01:05]} 12. Qa3 {[%emt 0:00:04]} Qxa3 {[%emt 0:00:19]} 13. Nxa3 {[%emt 0:00:07]} Bh5 {[%emt 0:00:05]} 14. f3 {[%emt 0:04:03]} Nbd7 {[%emt 0:03:24]} 15. Kf2 {[%emt 0:00:37]} Kh8 {[%emt 0:12:47]} 16. cxd5 {[%emt 0:17:07]} exd5 {[%emt 0:01:18]} 17. Bh3 {[%emt 0:00:10]} Nxe5 {[%emt 0:00:45]} 18. fxe5 {[%emt 0:00:45]} Ng4+ {[%emt 0:15:36]} 19. Ke1 {[%emt 0:02:56]} Ne3 {[%emt 0:00:34]} 20. Rg1 {[%emt 0:00:25]} f4 {[%emt 0:00:19]} 21. Kd2 {[%emt 0:03:02]} Bg6 {[%emt 0:01:11]} 22. Rac1 {[%emt 0:04:52]} Rf7 {[%emt 0:11:25]} 23. Nb1 {[%emt 0:18:33]} Bf5 {[%emt 0:10:56]} 24. Bxf5 {[%emt 0:00:20]} Rxf5 {[%emt 0:00:46]} 25. Na3 {[%emt 0:01:53]} Rh5 {[%emt 0:04:45]} 26. Rh1 {[%emt 0:06:40]} Re8 {[%emt 0:02:53]} 27. Nc2 {[%emt 0:03:38]} Nxc2 {[%emt 0:17:10]} 28. Rxc2 {[%emt 0:00:42]} Re6 {[%emt 0:03:13]} 29. b4 {[%emt 0:00:13]} a6 {[%emt 0:02:13]} 30. a4 {[%emt 0:05:08]} 1/2-1/2

[Event "Romanian Championship Open 2025"]
[Site "Craiova"]
[Date "2025.02.17"]
[Round "3.20"]
[White "Daianu, Cristian-Clement"]
[Black "Vasile, Matei"]
[Result "1/2-1/2"]
[Annotator "ChessBase"]
[ECO "B34"]
[WhiteElo "2214"]
[BlackElo "1993"]
[PlyCount "32"]
[EventDate "2025.02.12"]
[EventType "swiss"]
[EventCountry "ROU"]
[SourceTitle "playchess.com"]
[Source "ChessBase"]
[SourceQuality "1"]
[TimeControl "40/5400+30:900+30"]

1. e4 {[%emt 0:00:04]} c5 {[%emt 0:00:04]} 2. Nf3 {[%emt 0:00:23]} Nc6 {[%emt 0:00:19]} 3. d4 {[%emt 0:00:11]} cxd4 {[%emt 0:00:04]} 4. Nxd4 {[%emt 0:00:06]} g6 {[%emt 0:00:02]} 5. Nc3 {[%emt 0:00:47]} Bg7 {[%emt 0:00:07]} 6. Be3 {[%emt 0:00:14]} Nf6 {[%emt 0:00:18]} 7. Nxc6 {[%emt 0:01:23]} bxc6 {[%emt 0:00:31]} 8. e5 {[%emt 0:00:07]} Ng8 {[%emt 0:01:15]} 9. Bd4 {[%emt 0:00:12]} c5 {[%emt 0:32:03]} 10. Bxc5 {[%emt 0:10:11]} Qc7 {[%emt 0:02:02]} 11. Bd4 {[%emt 0:15:45]} Bxe5 {[%emt 0:02:28]} 12. Nb5 {[%emt 0:21:12]} Qb8 {[%emt 0:03:40]} 13. Be2 {[%emt 0:10:10]} Bb7 {[%emt 0:03:44]} 14. Bf3 {[%emt 0:07:33]} Bxf3 {[%emt 0:03:09]} 15. Qxf3 {[%emt 0:00:32]} Bxd4 {[%emt 0:08:10]} 16. Nxd4 {[%emt 0:07:56]} Qe5+ {[%emt 0:00:50]} 1/2-1/2

[Event "Romanian Championship Open 2025"]
[Site "Craiova"]
[Date "2025.02.17"]
[Round "3.21"]
[White "Armenciu, Bogdan-Ovidiu"]
[Black "Sava, Robert-Gabriel"]
[Result "0-1"]
[Annotator "ChessBase"]
[ECO "C16"]
[WhiteElo "1950"]
[BlackElo "2183"]
[PlyCount "80"]
[EventDate "2025.02.12"]
[EventType "swiss"]
[EventCountry "ROU"]
[SourceTitle "playchess.com"]
[Source "ChessBase"]
[SourceQuality "1"]
[TimeControl "40/5400+30:900+30"]

1. e4 {[%emt 0:00:03]} e6 {[%emt 0:00:06]} 2. d4 {[%emt 0:00:14]} d5 {[%emt 0:00:06]} 3. Nc3 {[%emt 0:00:31]} Bb4 {[%emt 0:00:24]} 4. e5 {[%emt 0:00:29]} b6 {[%emt 0:00:19]} 5. h4 {[%emt 0:02:11]} Qd7 {[%emt 0:01:51]} 6. Qg4 {[%emt 0:02:19]} Bf8 {[%emt 0:00:08]} 7. b4 {[%emt 0:04:57]} h5 {[%emt 0:01:54]} 8. Qg3 {[%emt 0:00:27]} Nc6 {[%emt 0:02:05]} 9. Bb5 {[%emt 0:09:01]} a6 {[%emt 0:00:35]} 10. Bxc6 {[%emt 0:01:11]} Qxc6 {[%emt 0:00:11]} 11. a3 {[%emt 0:00:34]} Ne7 {[%emt 0:00:43]} 12. Nge2 {[%emt 0:02:07]} Bb7 {[%emt 0:01:10]} 13. Rh3 {[%emt 0:02:30]} Nf5 {[%emt 0:02:12]} 14. Qd3 {[%emt 0:03:36]} Qc4 {[%emt 0:00:43]} 15. Bg5 {[%emt 0:09:35]} Qxd3 {[%emt 0:03:16]} 16. Rxd3 {[%emt 0:02:13]} Be7 {[%emt 0:01:04]} 17. Bxe7 {[%emt 0:02:26]} Kxe7 {[%emt 0:00:51]} 18. g3 {[%emt 0:00:17]} Rhc8 {[%emt 0:00:31]} 19. Kd2 {[%emt 0:11:06]} Bc6 {[%emt 0:03:09]} 20. a4 {[%emt 0:16:35]} f6 {[%emt 0:15:25]} 21. exf6+ {[%emt 0:04:36]} Kxf6 {[%emt 0:02:59]} 22. Nf4 {[%emt 0:02:58]} Be8 {[%emt 0:01:17]} 23. Re1 {[%emt 0:05:33]} Bf7 {[%emt 0:00:14]} 24. a5 {[%emt 0:06:19]} bxa5 {[%emt 0:03:42]} 25. bxa5 {[%emt 0:00:16]} c5 {[%emt 0:00:54]} 26. Na4 {[%emt 0:00:29]} Nxd4 {[%emt 0:15:56]} 27. Nb6 {[%emt 0:02:05]} g6 {[%emt 0:05:35]} 28. Nxa8 {[%emt 0:02:52]} Rxa8 {[%emt 0:00:04]} 29. Rb1 {[%emt 0:00:22]} Nb5 {[%emt 0:01:59]} 30. Rf3 {[%emt 0:00:47]} Kg7 {[%emt 0:00:05]} 31. Nd3 {[%emt 0:00:42]} c4 {[%emt 0:03:07]} 32. Nc5 {[%emt 0:02:09]} e5 {[%emt 0:02:41]} 33. Re3 {[%emt 0:00:46]} e4 {[%emt 0:02:57]} 34. Nxa6 {[%emt 0:00:52]} d4 {[%emt 0:02:47]} 35. Ree1 {[%emt 0:02:11]} c3+ {[%emt 0:00:41]} 36. Kc1 {[%emt 0:00:18]} Na3 {[%emt 0:00:37]} 37. Ra1 {[%emt 0:02:22]} d3 {[%emt 0:02:26]} 38. Rxe4 {[%emt 0:00:42]} Nxc2 {[%emt 0:00:21]} 39. Raa4 {[%emt 0:00:38]} Bb3 {[%emt 0:01:42]} 40. Nc5 {[%emt 0:00:00]} d2+ {[%emt 0:00:00]} 0-1

[Event "Romanian Championship Open 2025"]
[Site "Craiova"]
[Date "2025.02.18"]
[Round "4.1"]
[White "Craciun, Sasha-Matei"]
[Black "Nisipeanu, Liviu-Dieter"]
[Result "1/2-1/2"]
[Annotator "ChessBase"]
[ECO "B81"]
[WhiteElo "2257"]
[BlackElo "2596"]
[PlyCount "48"]
[EventDate "2025.02.12"]
[EventType "swiss"]
[EventCountry "ROU"]
[SourceTitle "playchess.com"]
[Source "ChessBase"]
[SourceQuality "1"]
[TimeControl "40/5400+30:900+30"]

1. e4 {[%emt 0:00:04]} c5 {[%emt 0:00:06]} 2. Nf3 {[%emt 0:00:06]} d6 {[%emt 0:00:05]} 3. d4 {[%emt 0:00:04]} Nf6 {[%emt 0:00:05]} 4. Nc3 {[%emt 0:00:04]} cxd4 {[%emt 0:00:04]} 5. Nxd4 {[%emt 0:00:04]} e6 {[%emt 0:00:19]} 6. g4 {[%emt 0:00:53]} h6 {[%emt 0:00:11]} 7. Rg1 {[%emt 0:00:38]} Nc6 {[%emt 0:00:21]} 8. Be3 {[%emt 0:01:08]} Be7 {[%emt 0:01:27]} 9. Qe2 {[%emt 0:02:15]} Nxd4 {[%emt 0:04:05]} 10. Bxd4 {[%emt 0:00:12]} e5 {[%emt 0:00:03]} 11. Be3 {[%emt 0:00:04]} Be6 {[%emt 0:26:05]} 12. O-O-O {[%emt 0:24:18]} Rc8 {[%emt 0:00:07]} 13. Qb5+ {[%emt 0:02:08]} Kf8 {[%emt 0:08:08]} 14. f3 {[%emt 0:08:06]} b6 {[%emt 0:05:50]} 15. Nd5 {[%emt 0:15:52]} Nxd5 {[%emt 0:04:26]} 16. exd5 {[%emt 0:00:01]} Bd7 {[%emt 0:00:07]} 17. Qb4 {[%emt 0:03:51]} Qc7 {[%emt 0:04:22]} 18. Bd3 {[%emt 0:02:28]} Bg5 {[%emt 0:00:06]} 19. Qd2 {[%emt 0:06:19]} Qc5 {[%emt 0:03:08]} 20. Bxg5 {[%emt 0:06:42]} hxg5 {[%emt 0:00:08]} 21. Qxg5 {[%emt 0:09:15]} Rxh2 {[%emt 0:03:31]} 22. Rh1 {[%emt 0:01:44]} Qf2 {[%emt 0:07:01]} 23. Rxh2 {[%emt 0:01:00]} Qxh2 {[%emt 0:00:07]} 24. Qd2 {[%emt 0:02:24]} Qxd2+ {[%emt 0:09:45]} 1/2-1/2

[Event "Romanian Championship Open 2025"]
[Site "Craiova"]
[Date "2025.02.18"]
[Round "4.2"]
[White "Lupulescu, Constantin"]
[Black "Cnejev, Vladimir-Alexandru"]
[Result "1/2-1/2"]
[Annotator "ChessBase"]
[ECO "D37"]
[WhiteElo "2603"]
[BlackElo "2300"]
[PlyCount "105"]
[EventDate "2025.02.12"]
[EventType "swiss"]
[EventCountry "ROU"]
[SourceTitle "playchess.com"]
[Source "ChessBase"]
[SourceQuality "1"]
[TimeControl "40/5400+30:900+30"]

1. d4 {[%emt 0:00:02]} d5 {[%emt 0:00:08]} 2. c4 {[%emt 0:00:05]} e6 {[%emt 0:00:04]} 3. Nc3 {[%emt 0:00:08]} Be7 {[%emt 0:00:03]} 4. Nf3 {[%emt 0:00:06]} Nf6 {[%emt 0:00:08]} 5. Bf4 {[%emt 0:00:04]} O-O {[%emt 0:00:16]} 6. e3 {[%emt 0:00:05]} c5 {[%emt 0:00:29]} 7. dxc5 {[%emt 0:00:12]} Bxc5 {[%emt 0:00:09]} 8. Qc2 {[%emt 0:00:22]} Nc6 {[%emt 0:00:30]} 9. Rd1 {[%emt 0:00:20]} Re8 {[%emt 0:20:51]} 10. cxd5 {[%emt 0:01:23]} exd5 {[%emt 0:01:10]} 11. Be2 {[%emt 0:00:59]} Be6 {[%emt 0:04:34]} 12. O-O {[%emt 0:02:17]} Rc8 {[%emt 0:07:56]} 13. a3 {[%emt 0:11:33]} h6 {[%emt 0:12:47]} 14. h3 {[%emt 0:01:54]} Qe7 {[%emt 0:05:55]} 15. Na4 {[%emt 0:10:10]} Bd6 {[%emt 0:00:58]} 16. Bxd6 {[%emt 0:00:14]} Qxd6 {[%emt 0:00:01]} 17. Qb1 {[%emt 0:04:21]} Ne5 {[%emt 0:09:21]} 18. Nc3 {[%emt 0:01:49]} Nc4 {[%emt 0:04:43]} 19. Bxc4 {[%emt 0:07:09]} Rxc4 {[%emt 0:00:11]} 20. Rd4 {[%emt 0:00:10]} Rxd4 {[%emt 0:01:16]} 21. Nxd4 {[%emt 0:00:23]} Qe5 {[%emt 0:01:25]} 22. Qd3 {[%emt 0:03:37]} a6 {[%emt 0:04:35]} 23. Nde2 {[%emt 0:08:48]} Rc8 {[%emt 0:03:23]} 24. Qd4 {[%emt 0:04:09]} Qxd4 {[%emt 0:00:41]} 25. Nxd4 {[%emt 0:00:04]} Kf8 {[%emt 0:03:29]} 26. Rd1 {[%emt 0:03:10]} Ke7 {[%emt 0:00:54]} 27. Nde2 {[%emt 0:04:08]} Rc5 {[%emt 0:03:03]} 28. f3 {[%emt 0:00:52]} a5 {[%emt 0:09:03]} 29. Kf2 {[%emt 0:02:31]} g6 {[%emt 0:01:07]} 30. g4 {[%emt 0:02:30]} Nd7 {[%emt 0:01:38]} 31. Rd4 {[%emt 0:03:30]} Nb6 {[%emt 0:02:44]} 32. b3 {[%emt 0:06:36]} Na8 {[%emt 0:01:22]} 33. Ke1 {[%emt 0:03:21]} Nc7 {[%emt 0:00:49]} 34. Kd2 {[%emt 0:00:50]} Rc6 {[%emt 0:00:27]} 35. Nf4 {[%emt 0:05:35]} Rd6 {[%emt 0:01:13]} 36. Nd3 {[%emt 0:01:09]} Rd8 {[%emt 0:00:34]} 37. b4 {[%emt 0:03:21]} Ra8 {[%emt 0:00:31]} 38. a4 {[%emt 0:03:13]} b6 {[%emt 0:00:21]} 39. Nf4 {[%emt 0:01:17]} Rd8 {[%emt 0:00:27]} 40. Nfe2 {[%emt 0:00:00]} Rh8 {[%emt 0:00:00]} 41. Ke1 {[%emt 0:08:23]} h5 {[%emt 0:08:44]} 42. Nf4 {[%emt 0:06:41]} hxg4 {[%emt 0:00:07]} 43. hxg4 {[%emt 0:00:09]} Rh1+ {[%emt 0:04:34]} 44. Kf2 {[%emt 0:03:12]} Ra1 {[%emt 0:00:11]} 45. bxa5 {[%emt 0:01:09]} bxa5 {[%emt 0:00:03]} 46. Rd2 {[%emt 0:02:04]} Ra3 {[%emt 0:04:50]} 47. Ncxd5+ {[%emt 0:03:33]} Bxd5 {[%emt 0:00:17]} 48. Nxd5+ {[%emt 0:00:05]} Nxd5 {[%emt 0:00:05]} 49. Rxd5 {[%emt 0:00:03]} Rxa4 {[%emt 0:00:06]} 50. e4 {[%emt 0:00:49]} Ra1 {[%emt 0:00:46]} 51. Kg3 {[%emt 0:00:45]} a4 {[%emt 0:00:06]} 52. Ra5 {[%emt 0:01:04]} a3 {[%emt 0:00:16]} 53. g5 {[%emt 0:00:16]} 1/2-1/2

[Event "Romanian Championship Open 2025"]
[Site "Craiova"]
[Date "2025.02.18"]
[Round "4.3"]
[White "Gavrilescu, David"]
[Black "Cosma, Ioan"]
[Result "1-0"]
[Annotator "ChessBase"]
[ECO "B31"]
[WhiteElo "2543"]
[BlackElo "2286"]
[PlyCount "77"]
[EventDate "2025.02.12"]
[EventType "swiss"]
[EventCountry "ROU"]
[SourceTitle "playchess.com"]
[Source "ChessBase"]
[SourceQuality "1"]
[TimeControl "40/5400+30:900+30"]

1. e4 {[%emt 0:00:16]} c5 {[%emt 0:00:09]} 2. Nf3 {[%emt 0:00:16]} Nc6 {[%emt 0:00:13]} 3. Bb5 {[%emt 0:00:21]} g6 {[%emt 0:00:14]} 4. O-O {[%emt 0:00:25]} Bg7 {[%emt 0:00:14]} 5. c3 {[%emt 0:00:29]} Nf6 {[%emt 0:00:25]} 6. Re1 {[%emt 0:00:29]} O-O {[%emt 0:00:24]} 7. d4 {[%emt 0:00:31]} d5 {[%emt 0:00:21]} 8. e5 {[%emt 0:00:26]} Ne4 {[%emt 0:00:10]} 9. Be3 {[%emt 0:00:28]} cxd4 {[%emt 0:06:10]} 10. cxd4 {[%emt 0:00:45]} Bd7 {[%emt 0:00:39]} 11. Bd3 {[%emt 0:04:43]} Nb4 {[%emt 0:09:29]} 12. Bf1 {[%emt 0:00:54]} Rc8 {[%emt 0:00:42]} 13. Nc3 {[%emt 0:02:46]} e6 {[%emt 0:29:10]} 14. Qb3 {[%emt 0:12:16]} Qb6 {[%emt 0:00:15]} 15. Rec1 {[%emt 0:16:50]} Bc6 {[%emt 0:10:57]} 16. Ne1 {[%emt 0:11:58]} f5 {[%emt 0:09:26]} 17. exf6 {[%emt 0:05:25]} Nxf6 {[%emt 0:00:48]} 18. a3 {[%emt 0:00:29]} Na6 {[%emt 0:00:25]} 19. Qxb6 {[%emt 0:00:07]} axb6 {[%emt 0:00:05]} 20. h3 {[%emt 0:00:39]} Nc7 {[%emt 0:11:53]} 21. Nf3 {[%emt 0:04:58]} Nfe8 {[%emt 0:03:00]} 22. Ne5 {[%emt 0:09:22]} Nd6 {[%emt 0:01:20]} 23. Ne2 {[%emt 0:03:31]} Bb5 {[%emt 0:04:58]} 24. a4 {[%emt 0:04:04]} Bxe2 {[%emt 0:02:37]} 25. Bxe2 {[%emt 0:00:13]} Bxe5 {[%emt 0:00:14]} 26. dxe5 {[%emt 0:00:15]} Nc4 {[%emt 0:00:45]} 27. Bh6 {[%emt 0:04:50]} Nxe5 {[%emt 0:04:20]} 28. Bxf8 {[%emt 0:00:14]} Kxf8 {[%emt 0:00:05]} 29. Bb5 {[%emt 0:02:34]} Ke7 {[%emt 0:00:41]} 30. Rc2 {[%emt 0:00:39]} Kd6 {[%emt 0:01:13]} 31. Rac1 {[%emt 0:00:12]} g5 {[%emt 0:00:23]} 32. b4 {[%emt 0:02:20]} Ng6 {[%emt 0:00:31]} 33. Be2 {[%emt 0:03:02]} Ne7 {[%emt 0:00:59]} 34. b5 {[%emt 0:00:04]} Nf5 {[%emt 0:00:31]} 35. Bg4 {[%emt 0:00:25]} Nd4 {[%emt 0:00:13]} 36. Rc3 {[%emt 0:00:03]} h5 {[%emt 0:00:51]} 37. Bxh5 {[%emt 0:00:17]} Rh8 {[%emt 0:00:05]} 38. Bd1 {[%emt 0:03:41]} Rh7 {[%emt 0:00:19]} 39. Rg3 {[%emt 0:00:04]} 1-0

[Event "Romanian Championship Open 2025"]
[Site "Craiova"]
[Date "2025.02.18"]
[Round "4.4"]
[White "David, Alexandru-Vasile"]
[Black "Parligras, Mircea-Emilian"]
[Result "1-0"]
[Annotator "ChessBase"]
[ECO "D35"]
[WhiteElo "2331"]
[BlackElo "2528"]
[PlyCount "89"]
[EventDate "2025.02.12"]
[EventType "swiss"]
[EventCountry "ROU"]
[SourceTitle "playchess.com"]
[Source "ChessBase"]
[SourceQuality "1"]
[TimeControl "40/5400+30:900+30"]

1. d4 {[%emt 0:00:13]} Nf6 {[%emt 0:00:10]} 2. c4 {[%emt 0:00:11]} e6 {[%emt 0:00:09]} 3. Nf3 {[%emt 0:00:06]} d5 {[%emt 0:01:10]} 4. e3 {[%emt 0:02:55]} Be7 {[%emt 0:01:02]} 5. cxd5 {[%emt 0:00:23]} exd5 {[%emt 0:00:28]} 6. Nc3 {[%emt 0:00:10]} O-O {[%emt 0:04:07]} 7. Bd3 {[%emt 0:00:05]} Bg4 {[%emt 0:04:28]} 8. Qb3 {[%emt 0:06:13]} Bxf3 {[%emt 0:05:31]} 9. gxf3 {[%emt 0:00:19]} c5 {[%emt 0:04:08]} 10. Qxb7 {[%emt 0:03:07]} Nbd7 {[%emt 0:00:51]} 11. O-O {[%emt 0:12:33]} cxd4 {[%emt 0:10:13]} 12. exd4 {[%emt 0:00:12]} Rb8 {[%emt 0:10:48]} 13. Qxa7 {[%emt 0:00:08]} Nh5 {[%emt 0:00:55]} 14. Bf5 {[%emt 0:17:05]} Ndf6 {[%emt 0:02:12]} 15. Ne2 {[%emt 0:12:05]} Bd6 {[%emt 0:01:06]} 16. Ng3 {[%emt 0:00:07]} Nf4 {[%emt 0:09:41]} 17. Bxf4 {[%emt 0:03:34]} Bxf4 {[%emt 0:00:06]} 18. b3 {[%emt 0:00:12]} g6 {[%emt 0:07:02]} 19. Bh3 {[%emt 0:00:12]} h5 {[%emt 0:01:28]} 20. Rfe1 {[%emt 0:00:50]} Bd6 {[%emt 0:08:00]} 21. Rac1 {[%emt 0:09:27]} Nh7 {[%emt 0:06:31]} 22. Bg2 {[%emt 0:13:34]} Ra8 {[%emt 0:06:17]} 23. Qb7 {[%emt 0:00:10]} Rxa2 {[%emt 0:00:07]} 24. f4 {[%emt 0:06:13]} Bxf4 {[%emt 0:00:31]} 25. Ra1 {[%emt 0:00:39]} Rxa1 {[%emt 0:03:01]} 26. Rxa1 {[%emt 0:00:04]} Nf6 {[%emt 0:01:16]} 27. Nf1 {[%emt 0:03:53]} h4 {[%emt 0:04:57]} 28. b4 {[%emt 0:00:42]} Kg7 {[%emt 0:02:52]} 29. b5 {[%emt 0:00:35]} Bb8 {[%emt 0:00:29]} 30. Re1 {[%emt 0:03:35]} Qd6 {[%emt 0:00:50]} 31. h3 {[%emt 0:00:03]} Qf4 {[%emt 0:00:52]} 32. Bxd5 {[%emt 0:01:26]} Qxd4 {[%emt 0:00:58]} 33. Bg2 {[%emt 0:01:05]} Ba7 {[%emt 0:00:23]} 34. Ne3 {[%emt 0:00:06]} Rb8 {[%emt 0:00:47]} 35. Qa6 {[%emt 0:01:19]} Qb4 {[%emt 0:00:55]} 36. Qxf6+ {[%emt 0:00:06]} Kxf6 {[%emt 0:00:09]} 37. Nd5+ {[%emt 0:00:04]} Kg5 {[%emt 0:00:35]} 38. Nxb4 {[%emt 0:00:17]} Rxb5 {[%emt 0:00:03]} 39. Nd3 {[%emt 0:01:24]} Rb3 {[%emt 0:00:59]} 40. Bf1 {[%emt 0:00:00]} Ra3 {[%emt 0:00:00]} 41. Kg2 {[%emt 0:04:38]} Ra2 {[%emt 0:01:28]} 42. Re4 {[%emt 0:00:41]} f5 {[%emt 0:00:38]} 43. Re6 {[%emt 0:00:16]} Bd4 {[%emt 0:03:04]} 44. Be2 {[%emt 0:00:23]} Ra5 {[%emt 0:02:42]} 45. Ne1 {[%emt 0:04:21]} 1-0

[Event "Romanian Championship Open 2025"]
[Site "Craiova"]
[Date "2025.02.18"]
[Round "4.5"]
[White "Jianu, Vlad-Cristian"]
[Black "Dobre, Claudiu-Cristian"]
[Result "1/2-1/2"]
[Annotator "ChessBase"]
[ECO "D94"]
[WhiteElo "2467"]
[BlackElo "2279"]
[PlyCount "51"]
[EventDate "2025.02.12"]
[EventType "swiss"]
[EventCountry "ROU"]
[SourceTitle "playchess.com"]
[Source "ChessBase"]
[SourceQuality "1"]
[TimeControl "40/5400+30:900+30"]

1. d4 {[%emt 0:00:03]} d5 {[%emt 0:00:06]} 2. c4 {[%emt 0:00:05]} c6 {[%emt 0:00:04]} 3. Nc3 {[%emt 0:00:04]} Nf6 {[%emt 0:00:06]} 4. e3 {[%emt 0:00:03]} g6 {[%emt 0:01:53]} 5. Nf3 {[%emt 0:00:06]} Bg7 {[%emt 0:00:22]} 6. Be2 {[%emt 0:00:06]} O-O {[%emt 0:02:21]} 7. O-O {[%emt 0:00:05]} Bg4 {[%emt 0:12:21]} 8. cxd5 {[%emt 0:00:45]} cxd5 {[%emt 0:00:27]} 9. Qb3 {[%emt 0:00:18]} b6 {[%emt 0:00:40]} 10. Bd2 {[%emt 0:04:19]} Ne4 {[%emt 0:25:21]} 11. Be1 {[%emt 0:11:05]} Nc6 {[%emt 0:06:50]} 12. h3 {[%emt 0:09:02]} Nxc3 {[%emt 0:20:53]} 13. Bxc3 {[%emt 0:01:26]} Bc8 {[%emt 0:00:31]} 14. Rfc1 {[%emt 0:13:15]} Qd6 {[%emt 0:02:21]} 15. Bb5 {[%emt 0:09:02]} Bb7 {[%emt 0:00:53]} 16. Rc2 {[%emt 0:04:45]} Rfc8 {[%emt 0:01:48]} 17. Rac1 {[%emt 0:00:31]} e6 {[%emt 0:00:45]} 18. Bd2 {[%emt 0:02:47]} Ne7 {[%emt 0:04:01]} 19. Bb4 {[%emt 0:11:43]} Qd8 {[%emt 0:00:07]} 20. Qa3 {[%emt 0:01:11]} Bf8 {[%emt 0:00:45]} 21. Ne5 {[%emt 0:04:12]} a5 {[%emt 0:07:02]} 22. Bd6 {[%emt 0:11:59]} Rxc2 {[%emt 0:02:49]} 23. Rxc2 {[%emt 0:00:08]} Rc8 {[%emt 0:02:14]} 24. Rxc8 {[%emt 0:07:07]} Nxc8 {[%emt 0:00:08]} 25. Bxf8 {[%emt 0:00:04]} Qxf8 {[%emt 0:00:06]} 26. Qc3 {[%emt 0:03:05]} 1/2-1/2